fUST/lending_fUST_20251102
["ID","MTS","AMOUNT","RATE_DAILY","PERIOD"]
[392835970,1762023043296,-400.0,0.00038092,2]
[392835971,1762023043306,-165.73,0.000381,2]
[392835972,1762023043317,-339.0,0.00039547,120]
[392835973,1762023043327,-380.753085,0.00039654,2]
[392835974,1762023043338,-200.0,0.0004,120]
[392835975,1762023043349,-263.4009274,0.00041331,2]
[392835976,1762023043360,-474.12166932,0.00041331,2]
[392835977,1762023043371,-842.88296767,0.00041331,2]
[392835978,1762023043383,-161.71271429,0.00041331,2]
[392835979,1762023043393,-216.48366186,0.00041331,2]
[392835980,1762023043404,-389.67059134,0.00041331,2]
[392835981,1762023043414,-283.13559994,0.00041331,2]
[392835982,1762023043424,-400.0,0.00041425,14]
[392835983,1762023043434,-548.655029,0.00042,4]
[392835984,1762023043445,-509.64407988,0.00042081,2]
[392835985,1762023043456,-279.93430867,0.00042221,2]
[392835986,1762023043467,-291.08288573,0.00042672,2]
[392835987,1762023043478,-1000.0,0.00043,120]
[392835988,1762023043489,-156.0,0.00043,90]
[392835989,1762023043500,-692.74771794,0.00043405,2]
[392835990,1762023043511,-602.01783389,0.00043617,2]
[392835991,1762023043522,-255.45987831,0.00043634,31]
[392835992,1762023043532,-2418.14737033,0.00043635,28]
[392835993,1762023043542,-9106.63644026,0.00043655,39]
[392835994,1762023043552,-745.330698,0.00043686,2]
[392835995,1762023043562,-639.49,0.00043735,120]
[392835996,1762023043572,-398.80887581,0.00043854,120]
[392835997,1762023043584,-199.0,0.00043854,7]
[392835998,1762023043594,-500.0,0.00043944,120]
[392835999,1762023043604,-724.78,0.00043945,10]
[392836000,1762023043615,-1131.63,0.00043945,10]
[392836001,1762023043625,-943.03,0.00043945,10]
[392836002,1762023043636,-14339.5604064,0.00043945,3]
[392836003,1762023043647,-7519.00054374,0.00043945,3]
[392836004,1762023043657,-403.98447456,0.00043954,2]
[392836005,1762023043669,-66989.38946598,0.00043955,2]
[392836006,1762023043681,-606002.19526279,0.00043955,2]
[392836129,1762023676810,150.0,0.00022041,2]
[392836130,1762023677224,151.76,0.00024045,2]
[392836140,1762023753362,150.0,0.00021922,2]
[392836141,1762023753781,150.0,0.00023915,2]
[392836148,1762023901173,150.0,0.00022043,2]
[392836149,1762023901598,150.0,0.00024047,2]
[392836184,1762023974955,150.0,0.00021682,2]
[392836185,1762023975344,150.0,0.00023653,2]
[392836192,1762024053627,150.0,0.00020736,2]
[392836193,1762024054022,150.0,0.00022621,2]
[392836194,1762024054471,181.75,0.00024506,2]
[392836200,1762024128859,150.0,0.00020641,2]
[392836201,1762024129781,150.0,0.00022517,2]
[392836202,1762024130166,163.36,0.00024394,2]
[392836222,1762024201536,150.0,0.00022523,2]
[392836223,1762024201934,150.0,0.00024571,2]
[392836272,1762024232181,-584.29790623,0.00025347,2]
[392836274,1762024232191,-483.0,0.00025447,2]
[392836276,1762024232201,-219.13303517,0.00025447,2]
[392836278,1762024232210,-150.0,0.00026618,2]
[392836279,1762024232220,-194.22,0.00028666,2]
[392836281,1762024232229,-242.78,0.00030713,2]
[392836283,1762024232239,-1916.86447743,0.00031401,2]
[392836285,1762024232248,-162.507609,0.00032509,20]
[392836287,1762024232257,-291.34,0.00032761,2]
[392836289,1762024232266,-200.0,0.00033625,2]
[392836290,1762024232275,-5000.0,0.00033626,2]
[392836292,1762024232284,-7179.12279071,0.00033776,2]
[392836294,1762024232296,-3572.94253194,0.00033776,2]
[392836764,1762024237991,-755.55775092,0.00033776,2]
[392836765,1762024238001,-339.89,0.00034809,2]
[392836766,1762024238010,-151.0,0.00035116,2]
[392836767,1762024238020,-151.0,0.00035116,2]
[392836768,1762024238029,-151.0,0.00035116,2]
[392836769,1762024238039,-151.0,0.00035116,2]
[392836770,1762024238049,-151.0,0.00035116,2]
[392836771,1762024238059,-151.0,0.00035116,2]
[392836772,1762024238068,-151.0,0.00035116,2]
[392836773,1762024238078,-151.0,0.00035116,2]
[392836774,1762024238088,-151.0,0.00035116,2]
[392836775,1762024238097,-151.0,0.00035116,2]
[392836776,1762024238107,-151.0,0.00035116,2]
[392836777,1762024238116,-151.0,0.00035116,2]
[392836778,1762024238126,-151.0,0.00035116,2]
[392836779,1762024238137,-151.0,0.00035116,2]
[392836780,1762024238147,-151.0,0.00035116,2]
[392836781,1762024238156,-151.0,0.00035116,2]
[392836782,1762024238166,-151.0,0.00035116,2]
[392836783,1762024238175,-151.0,0.00035116,2]
[392836784,1762024238185,-151.0,0.00035116,2]
[392836785,1762024238194,-151.0,0.00035116,2]
[392836786,1762024238204,-500.0,0.00035136,2]
[392836787,1762024238214,-432.41948269,0.00035136,2]
[392836788,1762024238224,-6796.3241051,0.00035137,2]
[392836789,1762024238234,-2115.87894903,0.00035383,2]
[392836790,1762024238244,-1009.5760474,0.00035439,3]
[392836791,1762024238254,-541.2,0.00035483,2]
[392836792,1762024238265,-388.45,0.00036856,2]
[392836793,1762024238275,-250.0,0.00037519,2]
[392836794,1762024238285,-264.715,0.00037519,2]
[392836795,1762024238297,-193.60218271,0.000381,2]
[392836796,1762024238316,-68.09781729,0.000381,2]
[392836797,1762024238327,-412.0,0.00038483,2]
[392836798,1762024238339,-261.7,0.000386,2]
[392836799,1762024238351,-1206.89987139,0.00038853,2]
[392836800,1762024238363,-437.0,0.00038904,2]
[392836801,1762024238375,-261.7,0.00039,2]
[392836802,1762024238386,-261.7,0.000394,2]
[392836803,1762024238398,-261.7,0.000398,2]
[392836804,1762024238409,-2356.20231132,0.00040126,4]
[392836808,1762024240143,-2643.79768868,0.00040126,4]
[392836809,1762024240153,-261.7,0.000403,2]
[392836810,1762024240164,-261.7,0.000407,2]
[392836811,1762024240176,-485.56,0.00040951,2]
[392836812,1762024240194,-880.58018631,0.00041009,2]
[392836819,1762024243109,-1272.96262047,0.00041009,2]
[392836820,1762024243120,-261.7,0.000411,2]
[392836821,1762024243131,-261.7,0.000415,2]
[392836822,1762024243141,-211.60542346,0.00042,2]
[392836825,1762024246029,-50.09457654,0.00042,2]
[392836826,1762024246041,-289.66423803,0.00042347,2]
[392836827,1762024246128,-616.36968176,0.00042347,2]
[392836828,1762024246140,-155.19965796,0.00042347,2]
[392836829,1762024246152,-517.48068574,0.0004248,2]
[392836830,1762024246163,-319.92492419,0.0004248,2]
[392836831,1762024246175,-168.0,0.00042946,2]
[392836832,1762024246186,-285.95,0.00042999,7]
[392836833,1762024246197,-493.86891855,0.00043389,3]
[392836834,1762024246209,-406.01224936,0.00043389,3]
[392836835,1762024246220,-303.2900604,0.00043389,3]
[392836836,1762024246231,-531.01707915,0.00043389,3]
[392836837,1762024246243,-8441.86874493,0.00043389,2]
[392836838,1762024246254,-12811.7,0.00043555,39]
[392836839,1762024246265,-6405.84,0.0004369,39]
[392836840,1762024246275,-176.02120117,0.00043782,2]
[392836841,1762024246285,-307.27629442,0.00043835,3]
[392836842,1762024246295,-161.12144022,0.00043835,3]
[392836843,1762024246306,-187.50467844,0.00043841,3]
[392836844,1762024246318,-363.82,0.00043845,10]
[392836845,1762024246331,-725.22,0.00043845,10]
[392836846,1762024246342,-4301.86812188,0.00043845,3]
[392836847,1762024246353,-2255.70016308,0.00043845,3]
[392836848,1762024246364,-37436.21693911,0.00043855,2]
[392836849,1762024251828,189.30851417,0.00038139,60]
[392836859,1762024455837,310.4,0.00032877,120]
[392836879,1762024891113,303.871483,0.00013699,2]
[392836880,1762024891311,303.871483,0.00020187,2]
[392836903,1762025070466,6711.01328492,0.00023,2]
[392836904,1762025070488,10000.01,0.00023,2]
[392836905,1762025070510,10000.01,0.00023,2]
[392836906,1762025070531,10000.01,0.00023,2]
[392836907,1762025070551,10000.01,0.00023,2]
[392836908,1762025070570,10000.01,0.00023,2]
[392836909,1762025070591,10000.01,0.00023,2]
[392836910,1762025070611,10000.01,0.00023,2]
[392836911,1762025070630,10000.01,0.00023,2]
[392836912,1762025070650,10000.01,0.00023,2]
[392836913,1762025070677,185213.88671508,0.00023,2]
[392836938,1762025287515,4488.84404236,0.00021,5]
[392836939,1762025290156,5511.16595764,0.000125,2]
[392836940,1762025290178,40.85672369,0.000125,2]
[392836941,1762025298822,2118.1419173,0.000176,2]
[392836945,1762025308253,7841.01135901,0.00017,2]
[392836946,1762025308274,9369.9442511,0.00017,2]
[392836947,1762025308640,630.0657489,0.00022,5]
[392836948,1762025308660,2847.09000098,0.00022,5]
[392836949,1762025310765,7152.91999902,0.00015,2]
[392836950,1762025310786,10000.01,0.00015,2]
[392836951,1762025310806,10000.01,0.00015,2]
[392836952,1762025310827,2968.43485303,0.00015,2]
[392836953,1762025311825,9549.81931933,0.00019,2]
[392836954,1762025312407,589.73709658,0.000149,2]
[392836955,1762025312656,1000.0,0.0001,2]
[392836956,1762025313367,3331.85405458,0.00018,2]
[392836965,1762025318098,1023.66466808,0.000225,2]
[392836997,1762025366580,300.0,0.000225,2]
[392837000,1762025377009,300.0,0.000225,2]
[392837001,1762025380082,150.0,0.00020508,2]
[392837002,1762025380494,150.0,0.00022373,2]
[392837003,1762025380894,150.0,0.00024237,2]
[392837004,1762025387462,300.0,0.000225,2]
[392837006,1762025397588,300.0,0.000225,2]
[392837010,1762025426380,300.0,0.000225,2]
[392837035,1762025432231,-449.76483475,0.00025,3]
[392837071,1762025438076,-109.08678427,0.00025,3]
[392837072,1762025438087,-150.0,0.00026102,2]
[392837073,1762025438097,-331.94321573,0.00026102,2]
[392837074,1762025438131,-183.05678427,0.00026102,2]
[392837075,1762025438140,-205.91144101,0.00026576,2]
[392837076,1762025438150,-491.65495442,0.00026576,2]
[392837077,1762025438159,-303.871483,0.00026676,2]
[392837078,1762025438170,-150.0,0.00027966,2]
[392837079,1762025438179,-150.0,0.00029831,2]
[392837080,1762025438190,-158.41,0.00031695,2]
[392837081,1762025438199,-303.871483,0.00033165,2]
[392837082,1762025438209,-181.03,0.00033559,2]
[392837083,1762025438219,-1200.0,0.00035259,3]
[392837084,1762025438229,-203.66,0.00035424,2]
[392837085,1762025438238,-226.29,0.00037288,2]
[392837086,1762025438248,-166.954729,0.00037515,2]
[392837087,1762025438262,-196.95000197,0.00038057,2]
[392837088,1762025438272,-6213.23422457,0.000381,2]
[392837089,1762025438284,-2000.61577543,0.000381,2]
[392837090,1762025438294,-279.36820817,0.00038133,3]
[392837091,1762025438303,-1447.61601646,0.000386,2]
[392837092,1762025438314,-297.2090077,0.000386,2]
[392837120,1762025440319,-6469.02497584,0.000386,2]
[392837122,1762025440329,-500.0,0.00038999,15]
[392837124,1762025440338,-500.0,0.00038999,15]
[392837125,1762025440348,-200.67846081,0.00038999,15]
[392837128,1762025440357,-500.0,0.00038999,15]
[392837129,1762025440367,-500.0,0.00038999,2]
[392837132,1762025440376,-199.94938456,0.00038999,15]
[392837134,1762025440385,-446.0809756,0.00038999,15]
[392837136,1762025440394,-500.0,0.00038999,15]
[392837138,1762025440403,-500.0,0.00038999,15]
[392837139,1762025440412,-500.0,0.00038999,2]
[392837141,1762025440421,-500.0,0.00038999,15]
[392837143,1762025440430,-152.33462223,0.00038999,15]
[392837145,1762025440439,-500.0,0.00038999,2]
[392837147,1762025440449,-500.0,0.00038999,15]
[392837150,1762025440459,-486.67218637,0.00038999,15]
[392837151,1762025440467,-381.11805984,0.00038999,2]
[392837153,1762025440476,-8213.85,0.00039,2]
[392837155,1762025440485,-8213.85,0.000394,2]
[392837157,1762025440494,-303.871483,0.00039654,2]
[392837159,1762025440504,-7546.99294814,0.000398,2]
[392837162,1762025440516,-666.85705186,0.000398,2]
[392837164,1762025440525,-400.0,0.00039914,5]
[392837166,1762025440535,-400.0,0.00039914,5]
[392837168,1762025440544,-300.0,0.00039914,5]
[392837170,1762025440554,-364.0,0.00039914,5]
[392837172,1762025440563,-8213.85,0.000403,2]
[392837174,1762025440573,-5728.39400624,0.000407,2]
[392837276,1762025443235,-987.14006591,0.00038407,42]
[392837277,1762025443248,-71.45466471,0.00038407,42]
[392837278,1762025443258,-2485.45599376,0.000407,2]
[392837279,1762025443271,-8213.85,0.000411,2]
[392837280,1762025443282,-8213.85,0.000415,2]
[392837281,1762025443293,-230.87719603,0.00041899,31]
[392837282,1762025443302,-8213.85,0.000419,2]
[392837283,1762025443314,-279.35938432,0.00042137,2]
[392837284,1762025443323,-351.65070906,0.00042137,2]
[392837285,1762025443334,-2364.3648373,0.00042217,28]
[392837286,1762025443343,-604.35,0.00042307,10]
[392837287,1762025443353,-503.62,0.00042307,10]
[392837288,1762025443370,-419.69,0.00042307,10]
[392837289,1762025443380,-30000.03,0.00042317,2]
[392837290,1762025443390,-162.725653,0.00042319,2]
[392837291,1762025443399,-6013.0860607,0.00042319,2]
[392837292,1762025443408,-200.0,0.00042579,5]
[392837293,1762025443418,-156.0,0.00043,90]
[392837295,1762025443427,-10981.44,0.00043455,38]
[392837296,1762025443436,-349.74,0.00043645,10]
[392837297,1762025443446,-196526.91715133,0.00043655,2]
[392837298,1762025443455,-370.49435657,0.000437,60]
[392837299,1762025443464,-151.0,0.00043729,2]
[392837300,1762025443555,-151.0,0.00043729,2]
[392837301,1762025443574,-151.0,0.00043729,2]
[392837302,1762025443584,-151.0,0.00043729,2]
[392837303,1762025443593,-151.0,0.00043729,2]
[392837304,1762025443602,-151.0,0.00043729,2]
[392837305,1762025443611,-151.0,0.00043729,2]
[392837306,1762025443621,-151.0,0.00043729,2]
[392837307,1762025443631,-151.0,0.00043729,2]
[392837308,1762025443640,-151.0,0.00043729,2]
[392837309,1762025443649,-151.0,0.00043729,2]
[392837310,1762025443658,-151.0,0.00043729,2]
[392837311,1762025443667,-151.0,0.00043729,2]
[392837312,1762025443676,-151.0,0.00043729,2]
[392837313,1762025443686,-151.0,0.00043729,2]
[392837314,1762025443696,-151.0,0.00043729,2]
[392837315,1762025443706,-151.0,0.00043729,2]
[392837316,1762025443715,-151.0,0.00043729,2]
[392837317,1762025443724,-151.0,0.00043729,2]
[392837318,1762025443733,-151.0,0.00043729,2]
[392837319,1762025443742,-1024.2543147,0.00043745,3]
[392837320,1762025443751,-302.10270048,0.00043745,3]
[392837321,1762025443760,-418940.83697804,0.00043755,2]
[392837337,1762025446716,-12480.61707463,0.00043755,2]
[392837338,1762025446727,-586.36369892,0.00043755,2]
[392837363,1762025585810,200.0,0.00038133,60]
[392837439,1762026632371,-162.507608,0.00032509,20]
[392837440,1762026632381,-164.27253224,0.00038247,2]
[392837441,1762026632391,-496.14226655,0.00038347,2]
[392837442,1762026632400,-287.85420343,0.0003957,2]
[392837443,1762026632410,-550.0,0.00040421,5]
[392837444,1762026632419,-5577.006433,0.00040422,2]
[392837445,1762026632429,-164.27253224,0.000419,2]
[392837446,1762026632439,-548.655029,0.00042,4]
[392837447,1762026632448,-500.0,0.00042371,30]
[392837448,1762026632458,-3585.45920733,0.00042518,2]
[392837449,1762026632468,-632.97127631,0.00042518,2]
[392837450,1762026632477,-189.7799089,0.00042518,2]
[392837451,1762026632487,-266.57654935,0.00042518,2]
[392837452,1762026632497,-294.7945324,0.00042518,2]
[392837453,1762026632506,-1125.282269,0.00042518,2]
[392837454,1762026632516,-304.00563035,0.00042518,2]
[392837455,1762026632525,-500.0,0.0004295,30]
[392837456,1762026632535,-1000.0,0.00043,120]
[392837457,1762026632544,-156.0,0.00043,90]
[392837458,1762026632554,-550.0,0.00043097,5]
[392837460,1762026632563,-355.4700219,0.00043336,2]
[392837462,1762026632575,-389.8606761,0.00043336,2]
[392837464,1762026632584,-385.80856207,0.00043355,38]
[392837466,1762026632595,-1320.48158836,0.00043355,38]
[392837468,1762026632607,-3334.65772097,0.00043355,38]
[392837471,1762026632618,-1245.10276993,0.00043355,38]
[392837475,1762026632629,-499.25579893,0.00043355,38]
[392837478,1762026632638,-643.40458178,0.00043616,31]
[392837479,1762026632647,-500.0,0.00043616,2]
[392837480,1762026632657,-416.13554227,0.00043616,31]
[392837481,1762026632666,-408.31419447,0.00043616,2]
[392837482,1762026632676,-602.01783389,0.00043617,2]
[392837484,1762026632685,-150.0,0.00043617,120]
[392837486,1762026632695,-151.0,0.00043629,2]
[392837488,1762026632704,-151.0,0.00043629,2]
[392837490,1762026632715,-151.0,0.00043629,2]
[392837491,1762026632725,-151.0,0.00043629,2]
[392837492,1762026632735,-151.0,0.00043629,2]
[392837493,1762026632746,-151.0,0.00043629,2]
[392837494,1762026632755,-151.0,0.00043629,2]
[392837495,1762026632766,-151.0,0.00043629,2]
[392837496,1762026632776,-151.0,0.00043629,2]
[392837497,1762026632785,-151.0,0.00043629,2]
[392837498,1762026632795,-151.0,0.00043629,2]
[392837499,1762026632804,-151.0,0.00043629,2]
[392837500,1762026632814,-151.0,0.00043629,2]
[392837501,1762026632824,-151.0,0.00043629,2]
[392837502,1762026632834,-151.0,0.00043629,2]
[392837503,1762026632843,-151.0,0.00043629,2]
[392837504,1762026632853,-151.0,0.00043629,2]
[392837505,1762026632863,-151.0,0.00043629,2]
[392837506,1762026632872,-151.0,0.00043629,2]
[392837507,1762026632881,-151.0,0.00043629,2]
[392837508,1762026632891,-180.69458996,0.00043629,2]
[392837509,1762026632900,-951.32104367,0.00043629,2]
[392837510,1762026632909,-398.80887581,0.00043644,120]
[392837511,1762026632918,-199.0,0.00043644,7]
[392837512,1762026632931,-804.59,0.00043645,10]
[392837513,1762026632940,-670.49,0.00043645,10]
[392837514,1762026632950,-558.74,0.00043645,10]
[392837515,1762026632960,-10396.1812947,0.00043645,3]
[392837516,1762026632970,-331.61,0.00043654,31]
[392837517,1762026632980,-161.61403722,0.00043654,31]
[392837518,1762026632990,-239311.02296532,0.00043655,2]
[392837519,1762026633003,-926.8912505,0.00043655,2]
[392837522,1762026638330,-204.52948215,0.00043644,2]
[392837523,1762026638341,-18400.65828672,0.00043655,2]
[392837524,1762026638353,-2442.18721169,0.00043655,2]
[392837525,1762026638364,-822.42279838,0.00043655,2]
[392837526,1762026638379,-471.54538709,0.00043655,2]
[392837527,1762026638391,-1049.11911392,0.00043655,2]
[392837566,1762026640504,-4551.15217874,0.00043655,2]
[392837811,1762026643473,-465.62,0.00043645,10]
[392837812,1762026643487,-129308.30611292,0.00043655,2]
[392837813,1762026643578,-39810.26547752,0.00043655,2]
[392837834,1762026922479,150.0,0.00022708,2]
[392837835,1762026922894,150.0,0.00024773,2]
[392837839,1762026989882,150.0,0.00021736,2]
[392837840,1762026990281,150.0,0.00023712,2]
[392837841,1762027007090,2644.77377423,0.00024897,2]
[392837842,1762027022270,4441.76130783,0.00024897,2]
[392837843,1762027056180,150.0,0.00021057,2]
[392837844,1762027056611,150.0,0.00022971,2]
[392837847,1762027138163,63.47491794,0.00024897,2]
[392837848,1762027138184,4685.57465924,0.00024897,2]
[392837849,1762027153329,5000.0,0.00024897,2]
[392837854,1762027175423,314.43534076,0.00024897,2]
[392837855,1762027175444,4685.56465924,0.00024897,2]
[392837861,1762027311929,150.0,0.00019733,2]
[392837862,1762027312322,150.0,0.00021527,2]
[392837886,1762027376160,150.0,0.00019611,2]
[392837887,1762027376532,150.0,0.00021394,2]
[392837900,1762027505396,150.0,0.00019678,2]
[392837901,1762027505810,150.0,0.00021467,2]
[392837937,1762027632967,150.0,0.00019013,2]
[392837938,1762027633397,150.0,0.00020741,2]
[392837939,1762027636266,377.910573,0.00013699,2]
[392837940,1762027636481,377.910573,0.00020187,2]
[392837942,1762027674139,166.9547307,0.00024425,2]
[392837944,1762027680290,191.85,0.00016244,41]
[392837945,1762027697344,150.0,0.00020034,2]
[392837946,1762027697738,150.0,0.00021855,2]
[392837947,1762027698127,150.0,0.00023676,2]
[392837951,1762027762396,150.0,0.00020089,2]
[392837952,1762027762822,150.0,0.00021916,2]
[392837953,1762027763317,150.0,0.00023742,2]
[392837955,1762027827048,150.0,0.00020648,2]
[392837956,1762027827452,150.0,0.00022525,2]
[392837989,1762027832629,-395.77117875,0.00025029,2]
[392837991,1762027832639,-467.0,0.00025104,2]
[392837993,1762027832648,-150.0,0.00025129,2]
[392837995,1762027832657,-300.0,0.00025188,2]
[392837997,1762027832666,-12773.66933789,0.00025189,2]
[392837999,1762027832676,-151.0,0.00025189,2]
[392838001,1762027832685,-151.0,0.00025189,2]
[392838004,1762027832694,-151.0,0.00025189,2]
[392838006,1762027832703,-151.0,0.00025189,2]
[392838009,1762027832713,-151.0,0.00025189,2]
[392838012,1762027832722,-151.0,0.00025189,2]
[392838014,1762027832731,-151.0,0.00025189,2]
[392838016,1762027832742,-151.0,0.00025189,2]
[392838018,1762027832752,-151.0,0.00025189,2]
[392838021,1762027832761,-151.0,0.00025189,2]
[392838024,1762027832770,-151.0,0.00025189,2]
[392838027,1762027832779,-151.0,0.00025189,2]
[392838029,1762027832788,-151.0,0.00025189,2]
[392838031,1762027832797,-151.0,0.00025189,2]
[392838033,1762027832806,-151.0,0.00025189,2]
[392838035,1762027832815,-151.0,0.00025189,2]
[392838036,1762027832825,-151.0,0.00025189,2]
[392838037,1762027832834,-151.0,0.00025189,2]
[392838038,1762027832843,-151.0,0.00025189,2]
[392838040,1762027832852,-151.0,0.00025189,2]
[392838042,1762027832861,-13501.43703412,0.00025204,2]
[392838044,1762027832870,-377.910573,0.00026676,2]
[392838046,1762027832880,-500.0,0.00026927,2]
[392838047,1762027832889,-500.0,0.00026927,2]
[392838048,1762027832898,-500.0,0.00026927,2]
[392838049,1762027832907,-500.0,0.00026927,2]
[392838050,1762027832917,-500.0,0.00026927,2]
[392838051,1762027832926,-500.0,0.00026927,2]
[392838052,1762027832935,-500.0,0.00026927,2]
[392838053,1762027832944,-500.0,0.00026927,2]
[392838054,1762027832954,-2371.08765392,0.00026928,2]
[392838055,1762027832963,-177.0,0.00027129,2]
[392838056,1762027832972,-420.0,0.00027281,2]
[392838057,1762027832981,-204.0,0.00029129,2]
[392838058,1762027832990,-228.0,0.00029549,2]
[392838059,1762027833000,-231.0,0.00031129,2]
[392838060,1762027833010,-156.581879,0.00032509,20]
[392838061,1762027833019,-258.0,0.00033129,120]
[392838062,1762027833028,-377.910573,0.00033165,2]
[392838063,1762027833038,-403.98447456,0.00034096,2]
[392838064,1762027833047,-262.77,0.00035092,41]
[392838065,1762027833056,-184.87,0.00035092,41]
[392838066,1762027833066,-285.0,0.00035129,120]
[392838067,1762027833076,-184.88,0.00035192,41]
[392838068,1762027833087,-500.0,0.00035764,8]
[392838069,1762027833097,-160.0,0.0003631,2]
[392838070,1762027833107,-2371.0876539,0.00036621,2]
[392838071,1762027833116,-185.29127352,0.00036756,4]
[392838072,1762027833126,-260.0,0.00036858,2]
[392838073,1762027833135,-500.0,0.00036986,2]
[392838074,1762027833144,-4981.7,0.00036986,3]
[392838075,1762027833154,-4981.7,0.00036986,3]
[392838076,1762027833164,-1000.0,0.00036986,2]
[392838077,1762027833173,-312.0,0.00037129,120]
[392838078,1762027833183,-360.0,0.00037406,2]
[392838079,1762027833193,-460.0,0.00037954,2]
[392838080,1762027833202,-161.88,0.000382,2]
[392838081,1762027833211,-560.0,0.00038502,2]
[392838082,1762027833221,-161.88,0.000386,2]
[392838083,1762027833231,-660.0,0.0003905,2]
[392838084,1762027833241,-161.88,0.000391,2]
[392838085,1762027833250,-985.0,0.0003934,2]
[392838086,1762027833259,-639.0,0.0003934,2]
[392838087,1762027833269,-1756.49529176,0.00039396,2]
[392838088,1762027833279,-1203.43227856,0.00039564,2]
[392838089,1762027833289,-760.0,0.00039598,2]
[392838090,1762027833298,-161.88,0.000396,2]
[392838091,1762027833308,-377.910573,0.00039654,2]
[392838092,1762027833318,-161.88,0.000401,2]
[392838093,1762027833327,-500.0,0.00040141,8]
[392838094,1762027833337,-500.0,0.00040141,2]
[392838095,1762027833347,-5000.0,0.00040142,4]
[392838096,1762027833357,-161.88,0.000405,2]
[392838097,1762027833366,-161.88,0.00041,2]
[392838098,1762027833375,-161.88,0.000415,2]
[392838099,1762027833384,-161.88,0.00042,2]
[392838100,1762027833394,-168.0,0.00042278,7]
[392838101,1762027833403,-983.0,0.0004234,2]
[392838102,1762027833412,-627.0,0.0004234,2]
[392838103,1762027833421,-168.0,0.00042392,2]
[392838104,1762027833431,-168.0,0.00042451,120]
[392838105,1762027833441,-312.0,0.00042614,2]
[392838106,1762027833450,-400.0,0.0004263,14]
[392838107,1762027833459,-168.0,0.00042967,2]
[392838108,1762027833469,-400.0,0.00042979,2]
[392838109,1762027833478,-222.77531345,0.0004298,3]
[392838110,1762027833576,-2549.4111219,0.0004298,3]
[392838111,1762027833588,-388.02,0.0004298,10]
[392838112,1762027833598,-323.35,0.0004298,10]
[392838113,1762027833608,-269.46,0.0004298,10]
[392838114,1762027833617,-4981.7,0.00042989,3]
[392838115,1762027833627,-4981.7,0.00042989,3]
[392838116,1762027833637,-43902.40189909,0.0004299,2]
[392838117,1762027833646,-1217.896619,0.0004311,2]
[392838118,1762027833655,-4981.7,0.00043228,3]
[392838119,1762027833664,-7269.97,0.00043243,38]
[392838120,1762027833674,-2035.71626236,0.0004332,2]
[392838121,1762027833683,-1217.8966191,0.00043334,2]
[392838122,1762027833692,-2423.32,0.00043344,38]
[392838123,1762027833702,-168.0,0.00043368,2]
[392838124,1762027833711,-5428.31118773,0.00043454,2]
[392838125,1762027833720,-222.77531345,0.0004348,3]
[392838126,1762027833729,-2549.4111219,0.0004348,3]
[392838127,1762027833739,-179.41560908,0.0004349,2]
[392838128,1762027833749,-151.0,0.000435,10]
[392838129,1762027833759,-151.0,0.000435,13]
[392838130,1762027833768,-959.49,0.00043533,30]
[392838131,1762027833778,-799.58,0.00043533,30]